[Event "Titled Tuesday Blitz November 22 Late 2022"]
[White "Zhu, Jiner"]
[Black "Corrales Jimenez, Fidel"]
[WhiteFideId "8608059"]
[BlackFideId "3506690"]
[WhiteElo "2384"]
[BlackElo "2541"]
[Result "1/2-1/2"]
[Round "08"]
[TimeControl "180+1"]
[Date "2022.11.22"]
[WhiteClock "0:00:23"]
[BlackClock "0:00:11"]

1. e4 {[%clk 0:03:00]}  c5 {[%clk 0:02:59]} 2. Nc3 {[%clk 0:02:59]}  Nc6 {[%clk 0:02:55]} 3. Nge2 {[%clk 0:02:58]}  g6 {[%clk 0:02:55]} 4. d4 {[%clk 0:02:58]}  cxd4 {[%clk 0:02:56]} 5. Nxd4 {[%clk 0:02:59]}  Bg7 {[%clk 0:02:57]} 6. Be3 {[%clk 0:02:59]}  Nf6 {[%clk 0:02:53]} 7. Bc4 {[%clk 0:02:59]}  O-O {[%clk 0:02:52]} 8. Bb3 {[%clk 0:02:59]}  Na5 {[%clk 0:02:43]} 9. O-O {[%clk 0:02:41]}  Nxb3 {[%clk 0:02:42]} 10. axb3 {[%clk 0:02:39]}  d5 {[%clk 0:02:41]} 11. exd5 {[%clk 0:02:26]}  Nxd5 {[%clk 0:02:42]} 12. Nxd5 {[%clk 0:02:25]}  Qxd5 {[%clk 0:02:42]} 13. c3 {[%clk 0:02:25]}  a6 {[%clk 0:02:41]} 14. Qf3 {[%clk 0:02:24]}  Qxf3 {[%clk 0:02:39]} 15. Nxf3 {[%clk 0:02:25]}  Be6 {[%clk 0:02:38]} 16. b4 {[%clk 0:02:21]}  Rfd8 {[%clk 0:02:38]} 17. Bd4 {[%clk 0:02:19]}  f6 {[%clk 0:02:37]} 18. Rfe1 {[%clk 0:02:19]}  Kf7 {[%clk 0:02:37]} 19. Ng5+ {[%clk 0:02:16]}  fxg5 {[%clk 0:02:35]} 20. Bxg7 {[%clk 0:02:17]}  Rd2 {[%clk 0:02:32]} 21. Bd4 {[%clk 0:02:04]}  Rxb2 {[%clk 0:02:29]} 22. Re5 {[%clk 0:02:00]}  Bf5 {[%clk 0:02:26]} 23. Rae1 {[%clk 0:01:59]}  e6 {[%clk 0:02:22]} 24. Rc5 {[%clk 0:01:57]}  Re8 {[%clk 0:02:21]} 25. h3 {[%clk 0:01:53]}  h5 {[%clk 0:02:20]} 26. Kh2 {[%clk 0:01:52]}  g4 {[%clk 0:02:17]} 27. h4 {[%clk 0:01:52]}  Re7 {[%clk 0:02:10]} 28. Kg3 {[%clk 0:01:51]}  Rd7 {[%clk 0:02:10]} 29. Ree5 {[%clk 0:01:47]}  Ke7 {[%clk 0:02:09]} 30. Re3 {[%clk 0:01:35]}  Rd2 {[%clk 0:02:08]} 31. Rc8 {[%clk 0:01:28]}  Rd3 {[%clk 0:01:57]} 32. Rxd3 {[%clk 0:01:27]}  Bxd3 {[%clk 0:01:58]} 33. Kf4 {[%clk 0:01:27]}  Bf5 {[%clk 0:01:52]} 34. Kg5 {[%clk 0:01:19]}  Rd5 {[%clk 0:01:49]} 35. Kf4 {[%clk 0:01:18]}  Kd7 {[%clk 0:01:48]} 36. Rf8 {[%clk 0:01:17]}  Kc6 {[%clk 0:01:46]} 37. Rf7 {[%clk 0:01:17]}  b6 {[%clk 0:01:42]} 38. Ra7 {[%clk 0:01:10]}  Kb5 {[%clk 0:01:39]} 39. Rb7 {[%clk 0:01:09]}  Rd6 {[%clk 0:01:39]} 40. Ke5 {[%clk 0:01:08]}  Rc6 {[%clk 0:01:38]} 41. g3 {[%clk 0:01:06]}  Bc2 {[%clk 0:01:33]} 42. Rb8 {[%clk 0:01:05]}  Bb3 {[%clk 0:01:20]} 43. Rb7 {[%clk 0:01:05]}  Bd5 {[%clk 0:01:20]} 44. Rb8 {[%clk 0:01:02]}  Ba2 {[%clk 0:01:17]} 45. Rb7 {[%clk 0:01:02]}  Bb3 {[%clk 0:01:17]} 46. Rb8 {[%clk 0:01:01]}  Bd5 {[%clk 0:01:18]} 47. Kf6 {[%clk 0:00:56]}  a5 {[%clk 0:01:10]} 48. bxa5 {[%clk 0:00:55]}  Kxa5 {[%clk 0:01:11]} 49. Ke5 {[%clk 0:00:52]}  Ka6 {[%clk 0:01:08]} 50. Rg8 {[%clk 0:00:51]}  Rc7 {[%clk 0:00:45]} 51. Rxg6 {[%clk 0:00:50]}  Rh7 {[%clk 0:00:45]} 52. Rg5 {[%clk 0:00:49]}  Kb5 {[%clk 0:00:43]} 53. Kf6 {[%clk 0:00:47]}  Kc6 {[%clk 0:00:39]} 54. Kg6 {[%clk 0:00:44]}  Be4+ {[%clk 0:00:39]} 55. Kf6 {[%clk 0:00:44]}  Bf5 {[%clk 0:00:39]} 56. Rg8 {[%clk 0:00:38]}  b5 {[%clk 0:00:38]} 57. Rc8+ {[%clk 0:00:37]}  Kd6 {[%clk 0:00:34]} 58. Rd8+ {[%clk 0:00:35]}  Kc7 {[%clk 0:00:32]} 59. Ra8 {[%clk 0:00:35]}  Kc6 {[%clk 0:00:23]} 60. Kg5 {[%clk 0:00:34]}  Kd5 {[%clk 0:00:21]} 61. Rc8 {[%clk 0:00:30]}  Ke4 {[%clk 0:00:21]} 62. Rc5 {[%clk 0:00:29]}  b4 {[%clk 0:00:18]} 63. Rb5 {[%clk 0:00:23]}  bxc3 {[%clk 0:00:13]} 64. Bxc3 {[%clk 0:00:24]}  Kf3 {[%clk 0:00:13]} 65. Bd4 {[%clk 0:00:23]}  Bd3 {[%clk 0:00:13]} 66. Ra5 {[%clk 0:00:22]}  Ke4 {[%clk 0:00:13]} 67. Be3 {[%clk 0:00:21]}  Bc4 {[%clk 0:00:12]} 68. Ra7 {[%clk 0:00:20]}  Rh8 {[%clk 0:00:11]} 69. Rd7 {[%clk 0:00:20]}  Bd5 {[%clk 0:00:10]} 70. Kg6 {[%clk 0:00:19]}  Bc6 {[%clk 0:00:08]} 71. Rh7 {[%clk 0:00:18]}  Be8+ {[%clk 0:00:08]} 72. Kg7 {[%clk 0:00:18]}  Rxh7+ {[%clk 0:00:08]} 73. Kxh7 {[%clk 0:00:19]}  Kf5 {[%clk 0:00:09]} 74. Kh6 {[%clk 0:00:20]}  Bf7 {[%clk 0:00:09]} 75. Kg7 {[%clk 0:00:19]}  Bg6 {[%clk 0:00:09]} 76. Kh6 {[%clk 0:00:20]}  e5 {[%clk 0:00:10]} 77. Kg7 {[%clk 0:00:20]}  e4 {[%clk 0:00:10]} 78. Kh6 {[%clk 0:00:21]}  Be8 {[%clk 0:00:10]} 79. Bd4 {[%clk 0:00:21]}  Bg6 {[%clk 0:00:11]} 80. Be3 {[%clk 0:00:22]}  Bf7 {[%clk 0:00:10]} 81. Kg7 {[%clk 0:00:22]}  Bg6 {[%clk 0:00:11]} 82. Kh6 {[%clk 0:00:23]} 1/2-1/2


[Site "https://www.chess.com"]

[Event "Titled Tuesday Blitz November 22 Late 2022"]
[White "vjecspec"]
[Black "Paiva, Henrique M A Albergaria"]
[BlackFideId "1920995"]
[WhiteElo "2572"]
[BlackElo "1953"]
[Result "1-0"]
[Round "08"]
[TimeControl "180+1"]
[Date "2022.11.23"]
[WhiteClock "0:00:53"]
[BlackClock "0:00:51"]

1. e4 {[%clk 0:03:00]}  c5 {[%clk 0:02:58]} 2. Nf3 {[%clk 0:03:01]}  Nc6 {[%clk 0:02:55]} 3. d4 {[%clk 0:03:01]}  cxd4 {[%clk 0:02:56]} 4. Nxd4 {[%clk 0:03:01]}  e6 {[%clk 0:02:56]} 5. c4 {[%clk 0:03:01]}  Nf6 {[%clk 0:02:53]} 6. Nc3 {[%clk 0:03:02]}  Bb4 {[%clk 0:02:52]} 7. Nxc6 {[%clk 0:03:01]}  dxc6 {[%clk 0:02:50]} 8. Qxd8+ {[%clk 0:03:00]}  Kxd8 {[%clk 0:02:50]} 9. e5 {[%clk 0:02:58]}  Nd7 {[%clk 0:02:50]} 10. Bf4 {[%clk 0:02:57]}  h6 {[%clk 0:02:48]} 11. h4 {[%clk 0:02:57]}  b6 {[%clk 0:02:45]} 12. O-O-O {[%clk 0:02:46]}  Bxc3 {[%clk 0:02:44]} 13. bxc3 {[%clk 0:02:46]}  Bb7 {[%clk 0:02:40]} 14. h5 {[%clk 0:02:39]}  Kc7 {[%clk 0:02:37]} 15. Rh4 {[%clk 0:02:38]}  Nc5 {[%clk 0:02:31]} 16. Be3 {[%clk 0:02:23]}  Nd7 {[%clk 0:02:18]} 17. Bf4 {[%clk 0:02:17]}  Nc5 {[%clk 0:02:18]} 18. Be3 {[%clk 0:01:58]}  Nd7 {[%clk 0:02:17]} 19. Rg4 {[%clk 0:01:58]}  Rhg8 {[%clk 0:02:14]} 20. Bf4 {[%clk 0:01:44]}  Nc5 {[%clk 0:02:14]} 21. Re1 {[%clk 0:01:30]}  Rad8 {[%clk 0:02:11]} 22. Re3 {[%clk 0:01:29]}  Ba6 {[%clk 0:01:31]} 23. Be2 {[%clk 0:01:26]}  b5 {[%clk 0:01:29]} 24. cxb5 {[%clk 0:01:18]}  Bxb5 {[%clk 0:01:29]} 25. c4 {[%clk 0:01:14]}  Ba4 {[%clk 0:01:25]} 26. Ra3 {[%clk 0:01:02]}  Ne4 {[%clk 0:00:51]} 27. Be3 {[%clk 0:00:53]} 1-0


[Site "https://www.chess.com"]

[Event "Titled Tuesday Blitz November 22 Late 2022"]
[White "Aghasiyev, Kamal"]
[Black "Sztokbant, Bernardo Vainzoff"]
[WhiteFideId "13402854"]
[BlackFideId "2115956"]
[WhiteElo "2341"]
[BlackElo "2228"]
[Result "0-1"]
[Round "09"]
[TimeControl "180+1"]
[Date "2022.11.23"]
[WhiteClock "0:00:01"]
[BlackClock "0:00:01"]

1. d4 {[%clk 0:02:55]}  d5 {[%clk 0:03:00]} 2. Bf4 {[%clk 0:02:49]}  c6 {[%clk 0:03:00]} 3. Nd2 {[%clk 0:02:47]}  Bf5 {[%clk 0:03:00]} 4. e3 {[%clk 0:02:44]}  e6 {[%clk 0:03:00]} 5. Ngf3 {[%clk 0:02:43]}  Nf6 {[%clk 0:03:00]} 6. Be2 {[%clk 0:02:40]}  Bd6 {[%clk 0:03:00]} 7. O-O {[%clk 0:02:39]}  Bxf4 {[%clk 0:02:59]} 8. exf4 {[%clk 0:02:39]}  O-O {[%clk 0:02:59]} 9. Ne5 {[%clk 0:02:38]}  h6 {[%clk 0:02:53]} 10. Kh1 {[%clk 0:02:36]}  Bh7 {[%clk 0:02:44]} 11. f3 {[%clk 0:02:30]}  Ne8 {[%clk 0:02:36]} 12. Bd3 {[%clk 0:02:26]}  Bxd3 {[%clk 0:02:32]} 13. Nxd3 {[%clk 0:02:27]}  Nd7 {[%clk 0:02:31]} 14. Qe2 {[%clk 0:02:21]}  Nd6 {[%clk 0:02:31]} 15. g4 {[%clk 0:02:19]}  Qh4 {[%clk 0:02:30]} 16. Rg1 {[%clk 0:02:16]}  Nf6 {[%clk 0:02:18]} 17. Ne5 {[%clk 0:02:14]}  Rac8 {[%clk 0:02:01]} 18. Rg3 {[%clk 0:02:04]}  Nh7 {[%clk 0:01:56]} 19. Qg2 {[%clk 0:01:50]}  Qf6 {[%clk 0:01:55]} 20. c3 {[%clk 0:01:40]}  Qxf4 {[%clk 0:01:54]} 21. h4 {[%clk 0:01:35]}  c5 {[%clk 0:01:50]} 22. Nd3 {[%clk 0:01:26]}  Qf6 {[%clk 0:01:50]} 23. Nxc5 {[%clk 0:01:26]}  Qxh4+ {[%clk 0:01:48]} 24. Rh3 {[%clk 0:01:26]}  Qe7 {[%clk 0:01:44]} 25. Re1 {[%clk 0:01:25]}  Ng5 {[%clk 0:01:41]} 26. Rh5 {[%clk 0:01:20]}  b6 {[%clk 0:01:41]} 27. Nd3 {[%clk 0:01:20]}  Qf6 {[%clk 0:01:41]} 28. Ne5 {[%clk 0:01:19]}  Rc7 {[%clk 0:01:38]} 29. Qg3 {[%clk 0:01:15]}  b5 {[%clk 0:01:36]} 30. Nd3 {[%clk 0:01:02]}  Rc6 {[%clk 0:01:28]} 31. Kg2 {[%clk 0:00:55]}  a5 {[%clk 0:01:25]} 32. a3 {[%clk 0:00:33]}  Nc4 {[%clk 0:01:20]} 33. Nxc4 {[%clk 0:00:32]}  bxc4 {[%clk 0:01:19]} 34. Ne5 {[%clk 0:00:30]}  Rb6 {[%clk 0:01:19]} 35. Re2 {[%clk 0:00:30]}  Rb7 {[%clk 0:01:12]} 36. Qf2 {[%clk 0:00:16]}  Rfb8 {[%clk 0:01:11]} 37. Kg3 {[%clk 0:00:12]}  a4 {[%clk 0:00:23]} 38. Rh2 {[%clk 0:00:12]}  Rb5 {[%clk 0:00:16]} 39. Qe3 {[%clk 0:00:11]}  R8b7 {[%clk 0:00:12]} 40. Qf4 {[%clk 0:00:08]}  Kf8 {[%clk 0:00:08]} 41. Qxf6 {[%clk 0:00:06]}  gxf6 {[%clk 0:00:09]} 42. Nc6 {[%clk 0:00:06]}  Kg7 {[%clk 0:00:07]} 43. Nb4 {[%clk 0:00:06]}  Nh7 {[%clk 0:00:03]} 44. Rh4 {[%clk 0:00:05]}  Nf8 {[%clk 0:00:04]} 45. Reh2 {[%clk 0:00:05]}  Rb8 {[%clk 0:00:02]} 46. Rxh6 {[%clk 0:00:05]}  Ng6 {[%clk 0:00:02]} 47. Rh7+ {[%clk 0:00:05]}  Kf8 {[%clk 0:00:03]} 48. f4 {[%clk 0:00:03]}  Rxb4 {[%clk 0:00:02]} 49. axb4 {[%clk 0:00:02]}  Ke7 {[%clk 0:00:01]} 50. R2h6 {[%clk 0:00:01]}  Nf8 {[%clk 0:00:01]} 51. Rh8 {[%clk 0:00:01]}  Rb7 {[%clk 0:00:01]} 0-1


[Site "https://www.chess.com"]

[Event "Titled Tuesday Blitz November 22 Late 2022"]
[White "Aguilar, Juan"]
[Black "Kleiman, Jake"]
[WhiteFideId "3800091"]
[BlackFideId "2020041"]
[WhiteElo "2493"]
[BlackElo "2608"]
[Result "1-0"]
[Round "09"]
[TimeControl "180+1"]
[Date "2022.11.23"]
[WhiteClock "0:00:07"]
[BlackClock "0:00:05"]

1. d4 {[%clk 0:03:00]}  Nf6 {[%clk 0:02:55]} 2. c4 {[%clk 0:03:01]}  c5 {[%clk 0:02:52]} 3. d5 {[%clk 0:03:01]}  b5 {[%clk 0:02:52]} 4. Nf3 {[%clk 0:02:59]}  d6 {[%clk 0:02:52]} 5. Qc2 {[%clk 0:02:53]}  g6 {[%clk 0:02:51]} 6. e4 {[%clk 0:02:52]}  Bg7 {[%clk 0:02:50]} 7. cxb5 {[%clk 0:02:45]}  O-O {[%clk 0:02:50]} 8. Nc3 {[%clk 0:02:42]}  a6 {[%clk 0:02:49]} 9. a4 {[%clk 0:02:38]}  Nbd7 {[%clk 0:02:47]} 10. h3 {[%clk 0:02:35]}  Ne8 {[%clk 0:02:35]} 11. Be2 {[%clk 0:02:29]}  axb5 {[%clk 0:02:31]} 12. Bxb5 {[%clk 0:02:25]}  Ba6 {[%clk 0:02:30]} 13. Bxa6 {[%clk 0:02:23]}  Rxa6 {[%clk 0:02:29]} 14. O-O {[%clk 0:02:23]}  Nc7 {[%clk 0:02:29]} 15. Bg5 {[%clk 0:02:17]}  Re8 {[%clk 0:02:28]} 16. Rfb1 {[%clk 0:02:13]}  Qa8 {[%clk 0:02:19]} 17. Ra3 {[%clk 0:02:06]}  Kf8 {[%clk 0:02:15]} 18. Qd2 {[%clk 0:01:53]}  Kg8 {[%clk 0:02:09]} 19. Bh6 {[%clk 0:01:52]}  Bh8 {[%clk 0:02:05]} 20. b4 {[%clk 0:01:44]}  cxb4 {[%clk 0:02:02]} 21. Rxb4 {[%clk 0:01:42]}  Nc5 {[%clk 0:01:56]} 22. Nd4 {[%clk 0:01:39]}  e6 {[%clk 0:01:44]} 23. Ndb5 {[%clk 0:01:32]}  Nxb5 {[%clk 0:01:41]} 24. Nxb5 {[%clk 0:01:29]}  Qd8 {[%clk 0:01:26]} 25. Be3 {[%clk 0:01:22]}  exd5 {[%clk 0:01:20]} 26. exd5 {[%clk 0:01:23]}  Qa5 {[%clk 0:01:11]} 27. Rc4 {[%clk 0:01:10]}  Qxd2 {[%clk 0:01:06]} 28. Bxd2 {[%clk 0:01:11]}  Ne4 {[%clk 0:01:00]} 29. Re3 {[%clk 0:01:03]}  f5 {[%clk 0:00:54]} 30. f3 {[%clk 0:00:58]}  Nf6 {[%clk 0:00:50]} 31. Rxe8+ {[%clk 0:00:56]}  Nxe8 {[%clk 0:00:51]} 32. Rc8 {[%clk 0:00:55]}  Kf7 {[%clk 0:00:45]} 33. Rxe8 {[%clk 0:00:52]}  Bd4+ {[%clk 0:00:43]} 34. Kf1 {[%clk 0:00:44]}  Bc5 {[%clk 0:00:34]} 35. Rc8 {[%clk 0:00:37]}  Rxa4 {[%clk 0:00:33]} 36. Rc7+ {[%clk 0:00:37]}  Kg8 {[%clk 0:00:32]} 37. Bc3 {[%clk 0:00:33]}  f4 {[%clk 0:00:23]} 38. Rc6 {[%clk 0:00:26]}  Rc4 {[%clk 0:00:18]} 39. Bf6 {[%clk 0:00:17]}  Rc2 {[%clk 0:00:11]} 40. Nxd6 {[%clk 0:00:13]}  Rf2+ {[%clk 0:00:04]} 41. Ke1 {[%clk 0:00:13]}  Be3 {[%clk 0:00:05]} 42. Rc8# {[%clk 0:00:07]} 1-0


[Site "https://www.chess.com"]

[Event "Titled Tuesday Blitz November 22 Late 2022"]
[White "Bortnyk, Olexandr"]
[Black "Sarana, Alexey"]
[WhiteFideId "14120828"]
[BlackFideId "24133795"]
[WhiteElo "2723"]
[BlackElo "2708"]
[Result "1/2-1/2"]
[Round "09"]
[TimeControl "180+1"]
[Date "2022.11.22"]
[WhiteClock "0:00:04"]
[BlackClock "0:00:16"]

1. e4 {[%clk 0:03:00]}  c5 {[%clk 0:02:57]} 2. c3 {[%clk 0:03:01]}  d5 {[%clk 0:02:57]} 3. exd5 {[%clk 0:03:01]}  Qxd5 {[%clk 0:02:58]} 4. d4 {[%clk 0:03:02]}  Nc6 {[%clk 0:02:57]} 5. Be3 {[%clk 0:03:02]}  cxd4 {[%clk 0:02:58]} 6. cxd4 {[%clk 0:03:03]}  e5 {[%clk 0:02:58]} 7. Nc3 {[%clk 0:03:02]}  Bb4 {[%clk 0:02:58]} 8. Nf3 {[%clk 0:03:03]}  exd4 {[%clk 0:02:55]} 9. Nxd4 {[%clk 0:03:03]}  Nge7 {[%clk 0:02:54]} 10. Nxc6 {[%clk 0:02:34]}  Qxc6 {[%clk 0:02:08]} 11. Qd4 {[%clk 0:02:34]}  Bxc3+ {[%clk 0:02:08]} 12. Qxc3 {[%clk 0:02:29]}  Qxc3+ {[%clk 0:02:06]} 13. bxc3 {[%clk 0:02:30]}  Nd5 {[%clk 0:02:04]} 14. Bb5+ {[%clk 0:01:43]}  Bd7 {[%clk 0:02:04]} 15. Bxd7+ {[%clk 0:01:36]}  Kxd7 {[%clk 0:02:05]} 16. O-O-O {[%clk 0:01:35]}  Kc6 {[%clk 0:02:05]} 17. Bd4 {[%clk 0:01:33]}  f6 {[%clk 0:02:04]} 18. Rhe1 {[%clk 0:01:27]}  Rhe8 {[%clk 0:02:05]} 19. Kc2 {[%clk 0:01:20]}  b6 {[%clk 0:02:01]} 20. c4 {[%clk 0:01:15]}  Nf4 {[%clk 0:01:55]} 21. g3 {[%clk 0:01:08]}  Ne6 {[%clk 0:01:55]} 22. Be3 {[%clk 0:01:05]}  Rad8 {[%clk 0:01:48]} 23. Rxd8 {[%clk 0:01:02]}  Nxd8 {[%clk 0:01:48]} 24. h4 {[%clk 0:00:57]}  h5 {[%clk 0:01:46]} 25. Rd1 {[%clk 0:00:57]}  Nf7 {[%clk 0:01:46]} 26. Rd5 {[%clk 0:00:52]}  Re5 {[%clk 0:01:45]} 27. Rd3 {[%clk 0:00:46]}  Rf5 {[%clk 0:01:17]} 28. Kc3 {[%clk 0:00:40]}  Nd6 {[%clk 0:01:00]} 29. Rd4 {[%clk 0:00:32]}  Ra5 {[%clk 0:00:54]} 30. Bf4 {[%clk 0:00:23]}  Nf5 {[%clk 0:00:50]} 31. Rd8 {[%clk 0:00:23]}  Rxa2 {[%clk 0:00:47]} 32. Rc8+ {[%clk 0:00:18]}  Kd7 {[%clk 0:00:46]} 33. Rc7+ {[%clk 0:00:18]}  Ke6 {[%clk 0:00:46]} 34. Kd3 {[%clk 0:00:15]}  Rxf2 {[%clk 0:00:38]} 35. Rxa7 {[%clk 0:00:15]}  Nxg3 {[%clk 0:00:36]} 36. Ke3 {[%clk 0:00:14]}  Nh1 {[%clk 0:00:20]} 37. Ra1 {[%clk 0:00:14]}  Rc2 {[%clk 0:00:20]} 38. Kd3 {[%clk 0:00:10]}  Rf2 {[%clk 0:00:19]} 39. Ke3 {[%clk 0:00:07]}  Rc2 {[%clk 0:00:19]} 40. Kd3 {[%clk 0:00:04]}  Rf2 {[%clk 0:00:16]} 41. Ke3 {[%clk 0:00:04]} 1/2-1/2


[Site "https://www.chess.com"]

[Event "Titled Tuesday Blitz November 22 Late 2022"]
[White "Castillo Pena, Patricia Evarista"]
[Black "Perez Cruz, Adianet"]
[WhiteFideId "6412106"]
[BlackFideId "3510115"]
[WhiteElo "1919"]
[BlackElo "2050"]
[Result "0-1"]
[Round "09"]
[TimeControl "180+1"]
[Date "2022.11.23"]
[WhiteClock "0:00:25"]
[BlackClock "0:00:32"]

1. d4 {[%clk 0:02:44]}  d5 {[%clk 0:02:59]} 2. Nf3 {[%clk 0:02:42]}  Nf6 {[%clk 0:02:59]} 3. e3 {[%clk 0:02:42]}  c6 {[%clk 0:02:58]} 4. Bd3 {[%clk 0:02:41]}  Bg4 {[%clk 0:02:58]} 5. Nbd2 {[%clk 0:02:40]}  Nbd7 {[%clk 0:02:51]} 6. b3 {[%clk 0:02:39]}  e5 {[%clk 0:02:51]} 7. dxe5 {[%clk 0:02:38]}  Nxe5 {[%clk 0:02:51]} 8. Be2 {[%clk 0:02:38]}  Nxf3+ {[%clk 0:02:50]} 9. Nxf3 {[%clk 0:02:38]}  Bd6 {[%clk 0:02:49]} 10. Bb2 {[%clk 0:02:33]}  O-O {[%clk 0:02:49]} 11. O-O {[%clk 0:02:33]}  Qe7 {[%clk 0:02:48]} 12. h3 {[%clk 0:02:31]}  Bh5 {[%clk 0:02:48]} 13. Nd4 {[%clk 0:02:26]}  Bxe2 {[%clk 0:02:29]} 14. Qxe2 {[%clk 0:02:27]}  Qd7 {[%clk 0:02:13]} 15. Qf3 {[%clk 0:02:19]}  Be5 {[%clk 0:01:49]} 16. Rab1 {[%clk 0:02:17]}  Rfe8 {[%clk 0:01:30]} 17. Rfd1 {[%clk 0:02:15]}  Rad8 {[%clk 0:01:10]} 18. c4 {[%clk 0:02:01]}  Bxd4 {[%clk 0:01:05]} 19. Bxd4 {[%clk 0:02:00]}  Qe6 {[%clk 0:01:06]} 20. cxd5 {[%clk 0:01:54]}  Qxd5 {[%clk 0:01:01]} 21. Bxf6 {[%clk 0:01:47]}  Qxf3 {[%clk 0:00:46]} 22. Rxd8 {[%clk 0:01:44]}  Rxd8 {[%clk 0:00:45]} 23. gxf3 {[%clk 0:01:40]}  gxf6 {[%clk 0:00:46]} 24. Rc1 {[%clk 0:01:30]}  Rd2 {[%clk 0:00:43]} 25. a4 {[%clk 0:01:24]}  Rb2 {[%clk 0:00:42]} 26. Rc3 {[%clk 0:01:23]}  Kg7 {[%clk 0:00:40]} 27. Kg2 {[%clk 0:01:22]}  Kg6 {[%clk 0:00:37]} 28. f4 {[%clk 0:01:22]}  f5 {[%clk 0:00:37]} 29. Kf3 {[%clk 0:01:22]}  Kf6 {[%clk 0:00:38]} 30. Rd3 {[%clk 0:01:14]}  a6 {[%clk 0:00:34]} 31. a5 {[%clk 0:01:11]}  Ra2 {[%clk 0:00:33]} 32. b4 {[%clk 0:01:08]}  Rb2 {[%clk 0:00:34]} 33. Rd4 {[%clk 0:01:07]}  Kg7 {[%clk 0:00:34]} 34. Rc4 {[%clk 0:01:02]}  Kg6 {[%clk 0:00:33]} 35. Kg3 {[%clk 0:00:55]}  f6 {[%clk 0:00:34]} 36. f3 {[%clk 0:00:54]}  h5 {[%clk 0:00:34]} 37. e4 {[%clk 0:00:52]}  fxe4 {[%clk 0:00:34]} 38. fxe4 {[%clk 0:00:51]}  Rb3+ {[%clk 0:00:35]} 39. Kh4 {[%clk 0:00:50]}  Rf3 {[%clk 0:00:33]} 40. f5+ {[%clk 0:00:47]}  Kh6 {[%clk 0:00:33]} 41. Rd4 {[%clk 0:00:43]}  Rb3 {[%clk 0:00:33]} 42. Rc4 {[%clk 0:00:41]}  Re3 {[%clk 0:00:33]} 43. Rd4 {[%clk 0:00:41]}  Rb3 {[%clk 0:00:33]} 44. Rc4 {[%clk 0:00:41]}  Rd3 {[%clk 0:00:34]} 45. e5 {[%clk 0:00:25]}  fxe5 {[%clk 0:00:33]} 46. Re4 {[%clk 0:00:25]}  Rd4 {[%clk 0:00:32]} 0-1


[Site "https://www.chess.com"]

[Event "Titled Tuesday Blitz November 22 Late 2022"]
[White "Corrales Jimenez, Fidel"]
[Black "Fernandez De La Vara, Arnaldo"]
[WhiteFideId "3506690"]
[BlackFideId "3518388"]
[WhiteElo "2541"]
[BlackElo "2387"]
[Result "1-0"]
[Round "09"]
[TimeControl "180+1"]
[Date "2022.11.22"]
[WhiteClock "0:01:29"]
[BlackClock "0:00:01"]

1. e4 {[%clk 0:02:59]}  c5 {[%clk 0:03:00]} 2. d4 {[%clk 0:02:58]}  cxd4 {[%clk 0:03:00]} 3. c3 {[%clk 0:02:58]}  d3 {[%clk 0:03:01]} 4. Nf3 {[%clk 0:02:58]}  Nc6 {[%clk 0:03:01]} 5. Bxd3 {[%clk 0:02:58]}  g6 {[%clk 0:03:02]} 6. O-O {[%clk 0:02:57]}  Bg7 {[%clk 0:03:03]} 7. c4 {[%clk 0:02:57]}  Nf6 {[%clk 0:03:02]} 8. Nc3 {[%clk 0:02:57]}  O-O {[%clk 0:03:02]} 9. h3 {[%clk 0:02:57]}  d6 {[%clk 0:03:02]} 10. Bf4 {[%clk 0:02:57]}  Nd7 {[%clk 0:03:02]} 11. Qd2 {[%clk 0:02:56]}  Nc5 {[%clk 0:03:01]} 12. Rfe1 {[%clk 0:02:55]}  a6 {[%clk 0:02:56]} 13. Rad1 {[%clk 0:02:55]}  Rb8 {[%clk 0:02:47]} 14. Bb1 {[%clk 0:02:54]}  Be6 {[%clk 0:02:47]} 15. Nd5 {[%clk 0:02:54]}  b5 {[%clk 0:02:45]} 16. cxb5 {[%clk 0:02:54]}  axb5 {[%clk 0:02:46]} 17. b4 {[%clk 0:02:54]}  Na4 {[%clk 0:02:39]} 18. Rc1 {[%clk 0:02:51]}  Ne5 {[%clk 0:02:16]} 19. Nxe5 {[%clk 0:02:47]}  Bxe5 {[%clk 0:02:16]} 20. Bxe5 {[%clk 0:02:46]}  dxe5 {[%clk 0:02:17]} 21. Red1 {[%clk 0:02:43]}  Bxd5 {[%clk 0:01:48]} 22. Qxd5 {[%clk 0:02:44]}  Qxd5 {[%clk 0:01:48]} 23. Rxd5 {[%clk 0:02:45]}  Rfc8 {[%clk 0:01:47]} 24. Rxc8+ {[%clk 0:02:29]}  Rxc8 {[%clk 0:01:48]} 25. Bd3 {[%clk 0:02:29]}  Nc3 {[%clk 0:00:56]} 26. Rxe5 {[%clk 0:02:29]}  e6 {[%clk 0:00:57]} 27. Bxb5 {[%clk 0:02:26]}  Ra8 {[%clk 0:00:17]} 28. Bc4 {[%clk 0:02:24]}  Ra4 {[%clk 0:00:14]} 29. Bb3 {[%clk 0:02:02]}  Rxb4 {[%clk 0:00:14]} 30. f3 {[%clk 0:02:02]}  Rd4 {[%clk 0:00:12]} 31. Rc5 {[%clk 0:01:57]}  Rd3 {[%clk 0:00:12]} 32. Bc2 {[%clk 0:01:46]}  Re3 {[%clk 0:00:05]} 33. a4 {[%clk 0:01:46]}  Re1+ {[%clk 0:00:02]} 34. Kh2 {[%clk 0:01:45]}  Na2 {[%clk 0:00:02]} 35. Rc4 {[%clk 0:01:40]}  Ra1 {[%clk 0:00:01]} 36. Kg3 {[%clk 0:01:29]}  Nc1 {[%clk 0:00:01]} 37. Kf2 {[%clk 0:01:29]}  Kg7 {[%clk 0:00:01]} 38. Ke3 {[%clk 0:01:29]} 1-0


[Site "https://www.chess.com"]

[Event "Titled Tuesday Blitz November 22 Late 2022"]
[White "Cortes Orihuela, Javier"]
[Black "Salman, Pavel"]
[WhiteFideId "3414329"]
[BlackFideId "24153753"]
[WhiteElo "2080"]
[BlackElo "2187"]
[Result "1-0"]
[Round "09"]
[TimeControl "180+1"]
[Date "2022.11.23"]
[WhiteClock "0:00:04"]
[BlackClock "0:00:01"]

1. d4 {[%clk 0:02:59]}  Nf6 {[%clk 0:02:59]} 2. c4 {[%clk 0:02:58]}  c5 {[%clk 0:02:59]} 3. d5 {[%clk 0:02:57]}  b5 {[%clk 0:03:00]} 4. cxb5 {[%clk 0:02:58]}  a6 {[%clk 0:03:00]} 5. bxa6 {[%clk 0:02:57]}  g6 {[%clk 0:03:00]} 6. Nc3 {[%clk 0:02:57]}  Bg7 {[%clk 0:03:01]} 7. e4 {[%clk 0:02:58]}  O-O {[%clk 0:03:01]} 8. Nf3 {[%clk 0:02:57]}  Qa5 {[%clk 0:03:02]} 9. Nd2 {[%clk 0:02:57]}  Bxa6 {[%clk 0:03:01]} 10. Bxa6 {[%clk 0:02:57]}  Qxa6 {[%clk 0:03:02]} 11. Qe2 {[%clk 0:02:57]}  e6 {[%clk 0:03:02]} 12. Qxa6 {[%clk 0:02:56]}  Nxa6 {[%clk 0:03:03]} 13. dxe6 {[%clk 0:02:56]}  fxe6 {[%clk 0:03:04]} 14. O-O {[%clk 0:02:56]}  Nb4 {[%clk 0:03:04]} 15. Nb3 {[%clk 0:02:47]}  c4 {[%clk 0:02:58]} 16. Nc5 {[%clk 0:02:42]}  Rfc8 {[%clk 0:02:54]} 17. N5a4 {[%clk 0:02:36]}  Ra6 {[%clk 0:02:21]} 18. Bf4 {[%clk 0:01:42]}  Nxe4 {[%clk 0:02:08]} 19. Nxe4 {[%clk 0:01:29]}  Rxa4 {[%clk 0:02:06]} 20. Nd6 {[%clk 0:01:25]}  Rca8 {[%clk 0:01:58]} 21. Nxc4 {[%clk 0:01:00]}  Nd3 {[%clk 0:01:35]} 22. Nb6 {[%clk 0:00:52]}  Nxf4 {[%clk 0:01:35]} 23. Nxa4 {[%clk 0:00:47]}  Rxa4 {[%clk 0:01:32]} 24. g3 {[%clk 0:00:32]}  Ne2+ {[%clk 0:01:30]} 25. Kg2 {[%clk 0:00:31]}  Bxb2 {[%clk 0:01:28]} 26. Rad1 {[%clk 0:00:25]}  Nd4 {[%clk 0:00:50]} 27. Rd2 {[%clk 0:00:24]}  Bc3 {[%clk 0:00:48]} 28. Rd3 {[%clk 0:00:23]}  Ba5 {[%clk 0:00:49]} 29. Rfd1 {[%clk 0:00:18]}  e5 {[%clk 0:00:46]} 30. Re3 {[%clk 0:00:08]}  d6 {[%clk 0:00:45]} 31. Rb1 {[%clk 0:00:08]}  Rxa2 {[%clk 0:00:40]} 32. Rb7 {[%clk 0:00:08]}  Nc2 {[%clk 0:00:17]} 33. Reb3 {[%clk 0:00:06]}  Ne1+ {[%clk 0:00:16]} 34. Kf1 {[%clk 0:00:04]}  Ra1 {[%clk 0:00:11]} 35. Rd7 {[%clk 0:00:03]}  Nf3+ {[%clk 0:00:10]} 36. Kg2 {[%clk 0:00:04]}  Ne1+ {[%clk 0:00:01]} 37. Kh3 {[%clk 0:00:04]} 1-0


[Site "https://www.chess.com"]